fUST/lending_fUST_20260402
["ID","MTS","AMOUNT","RATE_DAILY","PERIOD"]
[419255626,1775059210273,500.0,0.00032876,120]
[419255627,1775059210548,500.0,0.00032876,120]
[419255628,1775059210798,500.0,0.00032876,120]
[419255629,1775059211060,500.0,0.00032876,120]
[419255630,1775059211283,500.0,0.00032876,120]
[419255631,1775059211541,345.14797352,0.00032876,120]
[419255632,1775059224501,1500.0,0.00032876,120]
[419255633,1775059495571,1500.0,0.00032876,120]
[419255635,1775059744210,1519.48826,0.00032876,120]
[419255655,1775059832386,-431.1220521,0.00012899,2]
[419255658,1775059838713,-115.50520268,0.00012899,2]
[419255659,1775059838723,-612.07742649,0.00012999,2]
[419255660,1775059838874,-587.92257351,0.00012999,2]
[419255661,1775059838884,-15281.03,0.00013,2]
[419255662,1775059838895,-1000.0,0.00013699,2]
[419255663,1775059838905,-1028.0,0.00014299,2]
[419255664,1775059838914,-1909.998488,0.00015,2]
[419255665,1775059838925,-177.68082538,0.00018792,7]
[419255666,1775059838934,-1000.0,0.00018928,2]
[419255667,1775059838944,-1403.0,0.00019618,2]
[419255668,1775059838955,-643.0,0.00019618,2]
[419255669,1775059838964,-2199.0,0.00019618,2]
[419255670,1775059838974,-184.0,0.00019618,2]
[419255671,1775059838984,-439.0,0.00019618,2]
[419255672,1775059838994,-2570.7752528,0.00020598,2]
[419255673,1775059839004,-4367.05607712,0.000208,2]
[419255674,1775059839013,-887.07378745,0.000209,2]
[419255675,1775059839025,-3297.26758885,0.000209,2]
[419255676,1775059839035,-12542.549648,0.000209,2]
[419255677,1775059839045,-292.466255,0.000209,2]
[419255678,1775059839054,-163.12,0.00021166,2]
[419255679,1775059839064,-244.67,0.0002147,2]
[419255680,1775059839074,-255.56,0.00021487,10]
[419255681,1775059839084,-212.96,0.00021487,10]
[419255682,1775059839094,-177.47,0.00021487,10]
[419255683,1775059839103,-887.37,0.00021487,10]
[419255684,1775059839112,-1238.80703657,0.00021494,2]
[419255685,1775059839122,-1238.80703656,0.00021495,2]
[419255686,1775059839132,-1238.80703656,0.00021496,2]
[419255687,1775059839141,-1238.80703656,0.00021496,2]
[419255688,1775059839151,-68876.26257014,0.00021497,2]
[419255689,1775059839160,-1238.80703656,0.00021497,2]
[419255690,1775059839169,-503.63568216,0.00021573,2]
[419255691,1775059839179,-500.0,0.00021573,2]
[419255692,1775059839188,-546.94,0.00021587,3]
[419255693,1775059839198,-500.0,0.00021594,2]
[419255694,1775059839207,-500.0,0.00021594,2]
[419255695,1775059839216,-500.0,0.00021594,2]
[419255696,1775059839226,-500.0,0.00021594,2]
[419255697,1775059839235,-500.0,0.00021594,2]
[419255698,1775059839245,-500.0,0.00021594,2]
[419255699,1775059839254,-256.73604797,0.00021594,2]
[419255700,1775059839264,-500.0,0.00021594,2]
[419255701,1775059839273,-500.0,0.00021594,2]
[419255702,1775059839283,-500.0,0.00021594,2]
[419255703,1775059839292,-168.27089105,0.00021594,2]
[419255704,1775059839302,-158.41574037,0.00021594,2]
[419255705,1775059839312,-500.0,0.00021594,2]
[419255706,1775059839321,-500.0,0.00021594,2]
[419255707,1775059839331,-500.0,0.00021594,2]
[419255708,1775059839340,-500.0,0.00021594,2]
[419255709,1775059839350,-500.0,0.00021594,2]
[419255710,1775059839359,-372.55118211,0.00021594,2]
[419255711,1775059839368,-500.0,0.00021594,2]
[419255712,1775059839377,-500.0,0.00021594,2]
[419255713,1775059839387,-500.0,0.00021594,2]
[419255714,1775059839396,-500.0,0.00021594,2]
[419255715,1775059839406,-500.0,0.00021594,2]
[419255716,1775059839415,-500.0,0.00021594,2]
[419255717,1775059839424,-500.0,0.00021594,2]
[419255718,1775059839434,-500.0,0.00021594,2]
[419255719,1775059839444,-628.79181311,0.00021594,2]
[419255720,1775059839453,-500.0,0.00021594,2]
[419255721,1775059839463,-500.0,0.00021594,2]
[419255722,1775059839473,-500.0,0.00021594,2]
[419255723,1775059839482,-500.0,0.00021594,2]
[419255724,1775059839492,-500.0,0.00021594,2]
[419255725,1775059839502,-500.0,0.00021594,2]
[419255726,1775059839512,-500.0,0.00021594,2]
[419255727,1775059839522,-500.0,0.00021594,2]
[419255728,1775059839531,-500.0,0.00021594,2]
[419255729,1775059839540,-500.0,0.00021594,2]
[419255730,1775059839678,-500.0,0.00021594,2]
[419255731,1775059839689,-347.40677419,0.00021594,2]
[419255733,1775059839699,-500.0,0.00021594,2]
[419255734,1775059839709,-500.0,0.00021594,2]
[419255736,1775059839718,-500.0,0.00021594,2]
[419255737,1775059839728,-500.0,0.00021594,2]
[419255738,1775059839738,-500.0,0.00021594,2]
[419255740,1775059839748,-500.0,0.00021594,2]
[419255741,1775059839758,-500.0,0.00021594,2]
[419255742,1775059839767,-500.0,0.00021594,2]
[419255743,1775059839777,-500.0,0.00021594,2]
[419255744,1775059839787,-500.0,0.00021594,2]
[419255745,1775059839797,-500.0,0.00021594,2]
[419255746,1775059839806,-500.0,0.00021594,2]
[419255747,1775059839815,-500.0,0.00021594,2]
[419255748,1775059839825,-500.0,0.00021594,2]
[419255749,1775059839834,-500.0,0.00021594,2]
[419255751,1775059839844,-500.0,0.00021594,2]
[419255752,1775059839854,-500.0,0.00021594,2]
[419255754,1775059839864,-500.0,0.00021594,2]
[419255755,1775059839873,-500.0,0.00021594,2]
[419255757,1775059839883,-650.0,0.00021594,2]
[419255759,1775059839893,-500.0,0.00021594,2]
[419255760,1775059839902,-500.0,0.00021594,2]
[419255763,1775059839912,-500.0,0.00021594,2]
[419255766,1775059839922,-500.0,0.00021594,2]
[419255768,1775059839931,-500.0,0.00021596,2]
[419255770,1775059839941,-179.13687343,0.00021596,2]
[419255772,1775059839950,-500.0,0.00021596,2]
[419255774,1775059839961,-339.03423337,0.00021596,2]
[419255775,1775059839970,-500.0,0.00021596,2]
[419255776,1775059839980,-500.0,0.00021596,2]
[419255778,1775059839989,-500.0,0.00021596,2]
[419255779,1775059839999,-384.33271346,0.00021596,2]
[419255782,1775059840008,-718485.15001509,0.00021597,2]
[419255814,1775059841290,-21796.85430732,0.00021597,2]
[419255817,1775059841301,-10413.51070062,0.00021597,2]
[419256034,1775059843830,-7412.19798299,0.00021597,2]
[419256267,1775059846673,-14573.55864179,0.00021597,2]
[419256268,1775059846685,-1872.93,0.00021597,2]
[419256269,1775059846696,-3461.90317999,0.00021597,2]
[419256270,1775059846707,-7040.52972771,0.00021597,2]
[419256271,1775059846727,-258319.6895528,0.00021597,2]
[419256272,1775059846737,-487.0,0.00021597,2]
[419256273,1775059846746,-487.0,0.00021597,2]
[419256274,1775059846756,-487.0,0.00021597,2]
[419256275,1775059846765,-487.0,0.00021597,2]
[419256276,1775059846775,-487.0,0.00021597,2]
[419256277,1775059846784,-487.0,0.00021597,2]
[419256278,1775059846793,-487.0,0.00021597,2]
[419256279,1775059846802,-487.0,0.00021597,2]
[419256280,1775059846812,-487.0,0.00021597,2]
[419256281,1775059846821,-944.99,0.00021597,2]
[419256282,1775059846831,-898.76229127,0.000216,25]
[419256283,1775059846840,-2192.14533946,0.000216,25]
[419256284,1775059846849,-151.0,0.000216,4]
[419256285,1775059846859,-151.0,0.000216,3]
[419256287,1775059846868,-1957.856,0.00021683,2]
[419256288,1775059846878,-209.40437684,0.00021683,2]
[419256289,1775059846887,-693.3919763,0.00021683,2]
[419256290,1775059846897,-217.15233878,0.00021683,2]
[419256291,1775059846907,-225.18697532,0.00021683,2]
[419256292,1775059846916,-329.26924186,0.00021683,2]
[419256293,1775059846926,-2773.56790519,0.00021683,2]
[419256294,1775059846936,-156.587,0.00021685,2]
[419256296,1775059846947,-693.3919763,0.00021685,2]
[419256297,1775059846956,-151.0,0.00021697,2]
[419256298,1775059846966,-151.268153,0.00021697,2]
[419256299,1775059846975,-197.449041,0.00021697,2]
[419256300,1775059846984,-197.449041,0.00021697,2]
[419256301,1775059846994,-197.449041,0.00021697,2]
[419256302,1775059847004,-197.449041,0.00021697,2]
[419256303,1775059847014,-197.449041,0.00021698,2]
[419256304,1775059847035,-197.449041,0.00021698,2]
[419256305,1775059847046,-197.449041,0.00021698,2]
[419256306,1775059847056,-197.449041,0.00021698,2]
[419256307,1775059847065,-197.449041,0.00021698,2]
[419256308,1775059847075,-197.449041,0.00021698,2]
[419256309,1775059847085,-197.449041,0.00021698,2]
[419256310,1775059847095,-197.449041,0.00021698,2]
[419256311,1775059847105,-2030.296672,0.00021738,2]
[419256312,1775059847116,-719.04747942,0.00021738,2]
[419256313,1775059847126,-4367.05607705,0.00021743,2]
[419256314,1775059847136,-2105.41764886,0.00021793,2]
[419256315,1775059847146,-745.65223616,0.00021793,2]
[419256316,1775059847156,-171.26482313,0.00021796,2]
[419256317,1775059847166,-197.449041,0.00021796,2]
[419256318,1775059847175,-197.449041,0.00021796,2]
[419256319,1775059847185,-197.449041,0.00021796,2]
[419256320,1775059847195,-197.449041,0.00021796,2]
[419256321,1775059847205,-174.48765646,0.00021796,2]
[419256322,1775059847215,-300.4156437,0.00021796,2]
[419256323,1775059847224,-3203.8123528,0.00021797,2]
[419256324,1775059847234,-33478.6547407,0.00021797,2]
[419256325,1775059847244,-151.0,0.00021797,2]
[419256326,1775059847254,-151.0,0.00021797,2]
[419256327,1775059847263,-151.0,0.00021797,2]
[419256328,1775059847272,-151.0,0.00021797,2]
[419256329,1775059847282,-197.449041,0.00021797,2]
[419256331,1775059847291,-197.449041,0.00021797,2]
[419256332,1775059847301,-197.449041,0.00021797,2]
[419256333,1775059847311,-197.44904688,0.00021797,2]
[419256335,1775059847320,-2220.86797061,0.00021848,2]
[419256336,1775059847330,-773.2413689,0.00021848,2]
[419256337,1775059847339,-500.0,0.0002187,2]
[419256338,1775059847349,-151.0,0.000219,2]
[419256339,1775059847359,-151.0,0.000219,2]
[419256340,1775059847369,-151.0,0.000219,2]
[419256341,1775059847378,-151.0,0.000219,2]
[419256342,1775059847388,-5004.36771527,0.000219,2]
[419256343,1775059847398,-801.85129955,0.00021903,2]
[419256345,1775059847408,-151.0,0.00021918,2]
[419256346,1775059847418,-151.0,0.00021918,2]
[419256347,1775059847428,-151.0,0.00021918,2]
[419256348,1775059847438,-151.0,0.00021918,2]
[419256349,1775059847448,-151.0,0.00021918,2]
[419256350,1775059847458,-151.0,0.00021918,2]
[419256351,1775059847468,-151.0,0.00021918,2]
[419256352,1775059847478,-151.0,0.00021918,2]
[419256353,1775059847488,-151.0,0.00021918,2]
[419256354,1775059847497,-151.0,0.00021918,2]
[419256355,1775059847507,-242.170012,0.00021918,2]
[419256356,1775059847517,-274.404334,0.00021918,2]
[419256357,1775059847528,-151.0,0.00021918,2]
[419256358,1775059847538,-151.0,0.00021918,2]
[419256359,1775059847548,-151.0,0.00021918,2]
[419256360,1775059847558,-151.0,0.00021918,2]
[419256361,1775059847567,-151.0,0.00021918,2]
[419256362,1775059847577,-151.0,0.00021918,2]
[419256363,1775059847586,-151.0,0.00021918,2]
[419256364,1775059847597,-151.0,0.00021918,2]
[419256365,1775059847607,-151.0,0.00021918,2]
[419256366,1775059847617,-151.0,0.00021918,2]
[419256367,1775059847626,-151.0,0.00021918,2]
[419256368,1775059847636,-151.0,0.00021918,2]
[419256369,1775059847645,-151.0,0.00021918,2]
[419256370,1775059847655,-151.0,0.00021918,2]
[419256371,1775059847665,-151.0,0.00021918,2]
[419256372,1775059847674,-151.0,0.00021918,2]
[419256373,1775059847683,-151.0,0.00021918,2]
[419256374,1775059847693,-151.0,0.00021918,2]
[419256375,1775059847703,-243.567737,0.00021918,2]
[419256376,1775059847712,-831.51979763,0.00021958,2]
[419256377,1775059847722,-500.0,0.00021973,2]
[419256378,1775059847732,-45506.23806974,0.0002198,3]
[419256379,1775059847743,-172.004,0.00021989,2]
[419256380,1775059847753,-158.759,0.00021999,2]
[419256381,1775059847763,-250.0,0.00022,4]
[419256382,1775059847777,-250.0,0.00022,4]
[419256383,1775059847786,-185.0,0.00022,7]
[419256384,1775059847796,-250.0,0.00022,4]
[419256385,1775059847806,-250.0,0.00022,4]
[419256386,1775059847816,-250.0,0.00022,4]
[419256387,1775059847826,-494.34994746,0.00022,8]
[419256388,1775059847836,-500.0,0.00022,8]
[419256389,1775059847848,-209938.10976182,0.00022,2]
[419256390,1775059959346,251.69290017,0.00032876,120]
[419256463,1775060416464,2588.0,0.00032876,120]
[419256464,1775060416699,2588.0,0.00032876,120]
[419256465,1775060416969,2588.0,0.00032876,120]
[419256466,1775060417211,2588.0,0.00032876,120]
[419256467,1775060417441,2588.0,0.00032876,120]
[419256468,1775060417672,2588.0,0.00032876,120]
[419256469,1775060417900,2588.0,0.00032876,120]
[419256470,1775060418231,2588.0,0.00032876,120]
[419256471,1775060418352,2588.0,0.00032876,120]
[419256472,1775060418613,2588.0,0.00032876,120]
[419256473,1775060418883,2588.0,0.00032876,120]
[419256474,1775060419114,2588.0,0.00032876,120]
[419256475,1775060419377,2588.0,0.00032876,120]
[419256497,1775060434317,2588.0,0.00032876,120]
[419256499,1775060434586,2588.0,0.00032876,120]
[419256505,1775060434879,2588.0,0.00032876,120]
[419256517,1775060435123,2588.0,0.00032876,120]
[419256533,1775060441461,2588.0,0.00032876,120]
[419256534,1775060441710,2588.0,0.00032876,120]
[419256535,1775060441975,2588.0,0.00032876,120]
[419256536,1775060442201,2588.0,0.00032876,120]
[419256537,1775060442422,2588.0,0.00032876,120]
[419256538,1775060442667,2588.0,0.00032876,120]
[419256539,1775060442930,2588.167857,0.00032876,120]
[419256541,1775060630742,10000.0,0.00032877,120]
[419256542,1775060634250,151.19698391,0.00032849,120]
[419256543,1775060651655,3857.0,0.00032877,120]
[419256553,1775060736823,500.0,0.00032876,120]
[419256554,1775060737058,500.0,0.00032876,120]
[419256555,1775060737313,500.0,0.00032876,120]
[419256556,1775060737544,500.0,0.00032876,120]
[419256557,1775060737789,500.0,0.00032876,120]
[419256558,1775060738372,500.0,0.00032876,120]
[419256559,1775060738612,500.0,0.00032876,120]
[419256560,1775060738835,500.0,0.00032876,120]
[419256561,1775060739076,500.0,0.00032876,120]
[419256562,1775060739325,500.0,0.00032876,120]
[419256563,1775060739555,500.0,0.00032876,120]
[419256564,1775060739818,500.0,0.00032876,120]
[419256565,1775060740153,500.0,0.00032876,120]
[419256566,1775060740299,500.0,0.00032876,120]
[419256567,1775060740579,500.0,0.00032876,120]
[419256568,1775060740832,500.0,0.00032876,120]
[419256569,1775060741090,500.0,0.00032876,120]
[419256570,1775060741323,500.0,0.00032876,120]
[419256571,1775060741547,500.0,0.00032876,120]
[419256572,1775060741773,500.0,0.00032876,120]
[419256573,1775060742016,500.0,0.00032876,120]
[419256574,1775060742286,500.0,0.00032876,120]
[419256575,1775060742514,500.0,0.00032876,120]
[419256576,1775060742744,255.18115835,0.00032876,120]
[419256608,1775061033420,-1000.0,0.00013699,2]
[419256610,1775061033430,-627.44486116,0.00013809,2]
[419256612,1775061033440,-1177.39321272,0.00013909,2]
[419256614,1775061033450,-1648.71116037,0.00014109,2]
[419256683,1775061038917,-375.38407702,0.00014109,2]
[419256684,1775061038927,-2383.65561981,0.00014309,2]
[419256685,1775061038937,-1426.55759422,0.00014409,2]
[419256898,1775061044019,-1316.65840812,0.00014409,2]
[419256899,1775061044029,-3377.18661899,0.00015684,2]
[419256900,1775061044039,-3822.52771466,0.00019246,14]
[419256901,1775061044048,-500.0,0.00019617,2]
[419256902,1775061044058,-342.98883206,0.00019781,2]
[419256903,1775061044068,-307.96840494,0.00019781,2]
[419256904,1775061044077,-643.0,0.00019936,2]
[419256905,1775061044087,-1403.0,0.00019936,2]
[419256906,1775061044097,-2199.0,0.00019936,2]
[419256907,1775061044106,-184.0,0.00019936,2]
[419256908,1775061044115,-439.0,0.00019936,2]
[419256909,1775061044125,-8294.7066609,0.00020516,2]
[419256910,1775061044135,-3275.29205784,0.00020592,2]
[419256911,1775061044145,-693.3919763,0.00020692,2]
[419256913,1775061044154,-2773.56790519,0.00020692,2]
[419256915,1775061044163,-719.04747942,0.00020747,2]
[419256917,1775061044173,-745.65223616,0.00020802,2]
[419256919,1775061044183,-773.2413689,0.00020857,2]
[419256921,1775061044192,-500.0,0.00020899,2]
[419256923,1775061044202,-447.0,0.000209,2]
[419256925,1775061044212,-801.85129955,0.00020912,2]
[419256927,1775061044221,-831.51979763,0.00020967,2]
[419256929,1775061044231,-862.28603014,0.00021022,2]
[419256931,1775061044240,-894.19061326,0.00021077,2]
[419256933,1775061044250,-927.27566595,0.00021132,2]
[419256935,1775061044259,-961.58486559,0.00021187,2]
[419256937,1775061044269,-2876.18991768,0.0002124,2]
[419256940,1775061044279,-514.43260525,0.00021242,2]
[419256963,1775061046975,-482.73090036,0.00021242,2]
[419256964,1775061046985,-163.12,0.0002156,2]
[419256965,1775061046994,-500.0,0.00021595,2]
[419256966,1775061047004,-500.0,0.00021595,2]
[419256967,1775061047014,-500.0,0.00021596,2]
[419256968,1775061047023,-500.0,0.00021596,2]
[419256969,1775061047033,-500.0,0.00021596,2]
[419256970,1775061047042,-500.0,0.00021596,2]
[419256971,1775061047051,-500.0,0.00021596,2]
[419256972,1775061047061,-508.28466794,0.00021596,2]
[419256973,1775061047072,-2982.60894464,0.00021788,2]
[419256974,1775061047082,-500.0,0.00021799,2]
[419256975,1775061047091,-579.65226224,0.00021799,2]
[419256976,1775061047101,-500.0,0.00021799,2]
[419256978,1775061047110,-500.0,0.00021799,2]
[419256979,1775061047120,-500.0,0.00021799,2]
[419256980,1775061047129,-500.0,0.00021799,2]
[419256981,1775061047138,-500.0,0.00021799,2]
[419256982,1775061047147,-335.51978558,0.00021799,2]
[419256983,1775061047156,-500.0,0.00021799,2]
[419256984,1775061047166,-500.0,0.00021799,2]
[419256985,1775061047176,-500.0,0.00021799,2]
[419256986,1775061047185,-500.0,0.00021799,2]
[419256987,1775061047195,-500.0,0.00021799,2]
[419256988,1775061047204,-500.0,0.00021799,2]
[419256989,1775061047214,-336.57617103,0.00021799,2]
[419256990,1775061047386,-500.0,0.00021799,2]
[419256991,1775061047398,-4322.04729506,0.000218,2]
[419256992,1775061047409,-4682.9526519,0.000218,2]
[419256993,1775061047418,-172.004,0.00021873,2]
[419256994,1775061047428,-162.380719,0.00021887,2]
[419256995,1775061047437,-693.3919763,0.00021887,2]
[419256996,1775061047447,-447.0,0.000219,2]
[419256997,1775061047456,-500.0,0.000219,2]
[419256998,1775061047466,-744.43,0.000219,2]
[419256999,1775061047476,-744.43,0.000219,2]
[419257000,1775061047485,-744.43,0.000219,2]
[419257001,1775061047494,-857.89,0.000219,2]
[419257002,1775061047504,-3275.29205778,0.00021922,2]
[419257003,1775061047514,-159.5084247,0.00021993,2]
[419257004,1775061047523,-7177.9228543,0.00021993,2]
[419257005,1775061047532,-500.0,0.00021999,2]
[419257006,1775061047541,-458.30690694,0.00021999,2]
[419257007,1775061047551,-500.0,0.00021999,2]
[419257008,1775061047560,-500.0,0.00021999,2]
[419257009,1775061047570,-500.0,0.00021999,2]
[419257010,1775061047579,-420.27199221,0.00021999,2]
[419257011,1775061047588,-250.0,0.00022,4]
[419257012,1775061047598,-250.0,0.00022,4]
[419257013,1775061047607,-250.0,0.00022,4]
[419257014,1775061047616,-250.0,0.00022,4]
[419257015,1775061047626,-250.0,0.00022,4]
[419257016,1775061047635,-500.0,0.00022,8]
[419257017,1775061047644,-341873.71411657,0.00022,2]
[419257018,1775061047656,-6619.80261468,0.00022,2]
[419257019,1775061047666,-158.0,0.00022,4]
[419257020,1775061047675,-182361.09606649,0.00022,2]
[419257021,1775061047685,-158.0,0.00022,2]
[419257022,1775061047694,-151.0,0.00022,2]
[419257023,1775061047703,-151.0,0.00022,2]
[419257024,1775061047713,-151.0,0.00022,2]
[419257025,1775061047722,-151.0,0.00022,2]
[419257026,1775061047731,-151.0,0.00022,2]
[419257027,1775061047741,-553.0,0.00022,2]
[419257028,1775061047750,-154.52543,0.00022,2]
[419257029,1775061047759,-212.091726,0.00022,2]
[419257030,1775061047768,-212.091726,0.00022,2]
[419257031,1775061047778,-212.091726,0.00022,2]
[419257032,1775061047788,-212.091726,0.00022,2]
[419257033,1775061047797,-151.0,0.00022,2]
[419257034,1775061047807,-151.0,0.00022,2]
[419257035,1775061047816,-207.386,0.00022007,2]
[419257036,1775061047826,-200.0,0.00022008,2]
[419257037,1775061047835,-600.0,0.0002213,10]
[419257038,1775061047845,-264.22244466,0.00022174,2]
[419257039,1775061047854,-3092.96547559,0.00022336,2]
[419257040,1775061047863,-719.04747942,0.00022435,2]
[419257041,1775061047872,-180.08283811,0.00022642,2]
[419257042,1775061047881,-842.0,0.00022647,10]
[419257043,1775061047892,-498.0,0.00022647,10]
[419257044,1775061047901,-280.0,0.00022647,10]
[419257045,1775061047910,-313.76370384,0.00022697,2]
[419257046,1775061047920,-3207.40519818,0.00022884,2]
[419257047,1775061047930,-447.0,0.000229,2]
[419257048,1775061047939,-200.0,0.000229,2]
[419257049,1775061047949,-184.0,0.00022936,2]
[419257050,1775061047958,-156.0,0.00022968,2]
[419257051,1775061047967,-291.8726612,0.00022983,2]
[419257052,1775061047977,-270.83333333,0.00023,2]
[419257053,1775061047987,-158.0,0.00023,2]
[419257054,1775061047996,-553.0,0.00023,2]
[419257055,1775061048006,-3275.29205778,0.00023251,2]
[419257056,1775061048015,-500.0,0.00023273,2]
[419257057,1775061048024,-500.0,0.00023273,2]
[419257058,1775061048033,-100161.938029,0.000233,2]
[419257059,1775061048042,-151.0,0.000233,2]
[419257060,1775061048052,-151.0,0.000233,2]
[419257061,1775061048062,-151.0,0.000233,2]
[419257062,1775061048071,-151.0,0.000233,2]
[419257063,1775061048081,-151.0,0.000233,2]
[419257064,1775061048091,-212.091726,0.000233,2]
[419257065,1775061048100,-212.091726,0.000233,2]
[419257066,1775061048110,-212.091726,0.000233,2]
[419257067,1775061048120,-212.091726,0.000233,2]
[419257068,1775061048130,-151.0,0.000233,2]
[419257069,1775061048140,-151.0,0.000233,2]
[419257070,1775061048150,-249.774734,0.000233,2]
[419257071,1775061048160,-151.0,0.000233,2]
[419257072,1775061048170,-151.0,0.000233,2]
[419257073,1775061048181,-151.0,0.000233,2]
[419257074,1775061048190,-1027.064535,0.000233,2]
[419257075,1775061048200,-1027.064535,0.000233,2]
[419257076,1775061048210,-1027.064535,0.000233,2]
[419257077,1775061048220,-1027.064535,0.000233,2]
[419257078,1775061048230,-151.0,0.000233,2]
[419257079,1775061048239,-952.516074,0.000233,2]
[419257080,1775061048249,-151.0,0.000233,2]
[419257081,1775061048259,-952.516074,0.000233,2]
[419257082,1775061048268,-952.516074,0.000233,2]
[419257083,1775061048278,-952.516074,0.000233,2]
[419257084,1775061048287,-500.0,0.000234,2]
[419257085,1775061048297,-3822.85996433,0.000235,2]
[419257086,1775061048307,-726.88832325,0.00023637,2]
[419257087,1775061048316,-1000.0,0.00023821,2]
[419257088,1775061048326,-1000.0,0.00023821,2]
[419257089,1775061048336,-153.45046923,0.00023845,2]
[419257090,1775061048346,-201.56439365,0.00023845,2]
[419257091,1775061048355,-225.99006479,0.00023845,2]
[419257092,1775061048365,-302.87332039,0.00023845,2]
[419257093,1775061048374,-217.71170832,0.00023845,2]
[419257094,1775061048385,-447.0,0.000239,2]
[419257095,1775061048395,-1000.0,0.00023948,2]
[419257096,1775061048405,-302.87332039,0.00023988,2]
[419257097,1775061048415,-201.56439365,0.00023988,2]
[419257099,1775061048424,-4671.98954451,0.00023995,53]
[419257100,1775061048433,-2404.44698849,0.00024,7]
[419257101,1775061048443,-158.0,0.00024,2]
[419257102,1775061048452,-553.0,0.00024,2]
[419257103,1775061048462,-153.45046923,0.00024131,7]
[419257104,1775061048471,-225.99006479,0.00024131,7]
[419257105,1775061048481,-302.87332039,0.00024131,7]
[419257106,1775061048491,-201.56439365,0.00024131,7]
[419257107,1775061048501,-201.56439365,0.00024275,7]
[419257108,1775061048510,-302.87332039,0.00024275,7]
[419257109,1775061048519,-720.0,0.00024343,10]
[419257110,1775061048529,-304.0,0.0002436,2]
[419257111,1775061048538,-1000.0,0.00024368,2]
[419257112,1775061048547,-1500.0,0.00024368,2]
[419257113,1775061048557,-160.0,0.00024402,14]
[419257114,1775061048566,-844.678181,0.00024402,14]
[419257115,1775061048576,-1529.356362,0.00024402,14]
[419257116,1775061048585,-263.70937,0.00024402,14]
[419257117,1775061048594,-160.0,0.00024402,14]
[419257118,1775061048603,-1052.962245,0.00024402,14]
[419257119,1775061048612,-1945.924491,0.00024402,14]
[419257120,1775061048621,-160.0,0.00024402,14]
[419257121,1775061048631,-769.988296,0.00024402,14]
[419257122,1775061048640,-1379.976593,0.00024402,14]
[419257123,1775061048650,-372.761526,0.00024402,14]
[419257124,1775061048660,-153.45046923,0.00024418,7]
[419257125,1775061048670,-225.99006479,0.00024418,7]
[419257126,1775061048680,-302.87332039,0.00024418,7]
[419257127,1775061048689,-201.56439365,0.00024418,7]
[419257128,1775061048699,-1531.78708565,0.00024496,2]
[419257129,1775061048708,-302.87332039,0.00024562,14]
[419257130,1775061048718,-201.56439365,0.00024562,14]
[419257131,1775061048727,-3275.29205778,0.00024581,2]
[419257132,1775061048736,-150.06796408,0.00024658,2]
[419257133,1775061048745,-280.0,0.00024658,2]
[419257134,1775061048755,-197.31870222,0.00024681,2]
[419257135,1775061048764,-153.45046923,0.00024705,14]
[419257136,1775061048774,-225.99006479,0.00024705,14]
[419257137,1775061048783,-302.87332039,0.00024705,14]
[419257138,1775061048792,-201.56439365,0.00024705,14]
[419257139,1775061048802,-1601.611076,0.00024791,2]